[Event "*** Titled Tuesday Blitz"]
[Site "Chess.com"]
[Date "2020.12.01"]
[Round "9"]
[White "GMaka"]
[Black "Morshynska"]
[Result "1/2-1/2"]
[WhiteElo "2432"]
[BlackElo "2283"]
[TimeControl "180+1"]
[EndTime "11:44:43 PST"]
[Termination "Game drawn - insufficient material"]

1. d4 {[%clk 0:03:00.9]} 1... d5 {[%clk 0:02:59.5]} 2. c4 {[%clk 0:02:59.8]}
2... c6 {[%clk 0:02:59.4]} 3. Nf3 {[%clk 0:02:58.8]} 3... Nf6 {[%clk 0:02:58.8]}
4. e3 {[%clk 0:02:58.4]} 4... e6 {[%clk 0:02:58.5]} 5. Bd3 {[%clk 0:02:55.9]}
5... Nbd7 {[%clk 0:02:50.5]} 6. b3 {[%clk 0:02:47.6]} 6... Bd6 {[%clk
0:02:42.3]} 7. Bb2 {[%clk 0:02:46.7]} 7... O-O {[%clk 0:02:38.5]} 8. Nbd2 {[%clk
0:02:44.3]} 8... Qe7 {[%clk 0:02:38.4]} 9. Ne5 {[%clk 0:02:36.1]} 9... Ba3
{[%clk 0:02:32]} 10. Qc1 {[%clk 0:02:05.7]} 10... Bxb2 {[%clk 0:02:28.9]} 11.
Qxb2 {[%clk 0:02:06.6]} 11... Nxe5 {[%clk 0:02:23.9]} 12. dxe5 {[%clk 0:02:06]}
12... Nd7 {[%clk 0:02:24.5]} 13. O-O {[%clk 0:02:00.2]} 13... f6 {[%clk
0:02:17.9]} 14. f4 {[%clk 0:01:33.8]} 14... fxe5 {[%clk 0:02:13.1]} 15. fxe5
{[%clk 0:01:34.7]} 15... Rxf1+ {[%clk 0:01:59.9]} 16. Rxf1 {[%clk 0:01:26.4]}
16... Qg5 {[%clk 0:01:51.6]} 17. Rf4 {[%clk 0:01:21.4]} 17... Qxe5 {[%clk
0:01:41.3]} 18. Qb1 {[%clk 0:01:14]} 18... Qxe3+ {[%clk 0:01:35.6]} 19. Rf2
{[%clk 0:01:10.3]} 19... Nf6 {[%clk 0:01:30.7]} 20. Nf1 {[%clk 0:01:07.2]} 20...
Qd4 {[%clk 0:01:25.3]} 21. Qc2 {[%clk 0:01:03.8]} 21... Ng4 {[%clk 0:01:07]} 22.
Bxh7+ {[%clk 0:01:02.5]} 22... Kh8 {[%clk 0:01:06.6]} 23. Bg6 {[%clk 0:01:03.4]}
23... Qxf2+ {[%clk 0:01:04.3]} 24. Qxf2 {[%clk 0:01:04.3]} 24... Nxf2 {[%clk
0:01:04.4]} 25. Kxf2 {[%clk 0:01:05.2]} 25... e5 {[%clk 0:00:54.6]} 26. Ke3
{[%clk 0:01:01.6]} 26... Be6 {[%clk 0:00:50.1]} 27. cxd5 {[%clk 0:00:56.6]}
27... cxd5 {[%clk 0:00:49.6]} 28. Ng3 {[%clk 0:00:56.3]} 28... Rc8 {[%clk
0:00:46.8]} 29. Kd2 {[%clk 0:00:56.3]} 29... Kg8 {[%clk 0:00:38.5]} 30. h4
{[%clk 0:00:54.9]} 30... Kf8 {[%clk 0:00:37.9]} 31. h5 {[%clk 0:00:55.2]} 31...
Ke7 {[%clk 0:00:37.8]} 32. Nf1 {[%clk 0:00:50.9]} 32... Kf6 {[%clk 0:00:37.2]}
33. Ne3 {[%clk 0:00:51.2]} 33... d4 {[%clk 0:00:36.6]} 34. Nf1 {[%clk
0:00:49.1]} 34... Bf5 {[%clk 0:00:36.4]} 35. Bxf5 {[%clk 0:00:39]} 35... Kxf5
{[%clk 0:00:37.3]} 36. Ng3+ {[%clk 0:00:39.2]} 36... Kg4 {[%clk 0:00:36.3]} 37.
Ne4 {[%clk 0:00:37.5]} 37... Kxh5 {[%clk 0:00:35.9]} 38. Nd6 {[%clk 0:00:35.7]}
38... Rc7 {[%clk 0:00:34.5]} 39. Nb5 {[%clk 0:00:32.8]} 39... Rf7 {[%clk
0:00:34.2]} 40. Ke2 {[%clk 0:00:33.2]} 40... a6 {[%clk 0:00:33.1]} 41. Nd6
{[%clk 0:00:33.3]} 41... Rc7 {[%clk 0:00:30.6]} 42. Kd3 {[%clk 0:00:33]} 42...
Kg4 {[%clk 0:00:28.1]} 43. Ke4 {[%clk 0:00:32.8]} 43... Rc2 {[%clk 0:00:24.7]}
44. Nf7 {[%clk 0:00:33]} 44... Rxg2 {[%clk 0:00:20.5]} 45. Nxe5+ {[%clk
0:00:32.3]} 45... Kg3 {[%clk 0:00:20.1]} 46. Ng6 {[%clk 0:00:27.5]} 46... Rxa2
{[%clk 0:00:18.7]} 47. Kxd4 {[%clk 0:00:26.7]} 47... Rb2 {[%clk 0:00:17.8]} 48.
Kc3 {[%clk 0:00:26]} 48... Re2 {[%clk 0:00:17.6]} 49. Kd4 {[%clk 0:00:25.2]}
49... a5 {[%clk 0:00:13.3]} 50. Nf8 {[%clk 0:00:24.7]} 50... b5 {[%clk
0:00:12.2]} 51. Kd3 {[%clk 0:00:24.9]} 51... Re7 {[%clk 0:00:11.4]} 52. Kd4
{[%clk 0:00:24.1]} 52... a4 {[%clk 0:00:11.2]} 53. bxa4 {[%clk 0:00:23.8]} 53...
bxa4 {[%clk 0:00:12.1]} 54. Kc3 {[%clk 0:00:24.2]} 54... Kf4 {[%clk 0:00:10.8]}
55. Ng6+ {[%clk 0:00:22.9]} 55... Kf3 {[%clk 0:00:09.3]} 56. Nxe7 {[%clk
0:00:23.8]} 56... g5 {[%clk 0:00:09.7]} 57. Nf5 {[%clk 0:00:22.9]} 57... g4
{[%clk 0:00:09.7]} 58. Kb4 {[%clk 0:00:21.2]} 58... Kf4 {[%clk 0:00:09.1]} 59.
Nd4 {[%clk 0:00:20.3]} 59... Ke4 {[%clk 0:00:08]} 60. Ne2 {[%clk 0:00:19.8]}
60... Ke3 {[%clk 0:00:07.9]} 61. Ng3 {[%clk 0:00:19.6]} 61... Kf3 {[%clk
0:00:08.1]} 62. Nh5 {[%clk 0:00:20.1]} 62... g3 {[%clk 0:00:08.4]} 63. Nxg3
{[%clk 0:00:19.9]} 63... Kxg3 {[%clk 0:00:09.3]} 64. Kxa4 {[%clk 0:00:19.7]}
1/2-1/2

[Event "*** Titled Tuesday Blitz"]
[Site "Chess.com"]
[Date "2020.12.01"]
[Round "9"]
[White "Zmeeed63"]
[Black "Enriquack"]
[Result "0-1"]
[WhiteElo "2384"]
[BlackElo "2294"]
[TimeControl "180+1"]
[EndTime "11:44:43 PST"]
[Termination "Enriquack won on time"]

1. d4 {[%clk 0:02:57.7]} 1... Nf6 {[%clk 0:02:58.9]} 2. c4 {[%clk 0:02:57.1]}
2... g6 {[%clk 0:02:58.7]} 3. Nc3 {[%clk 0:02:57.3]} 3... d5 {[%clk 0:02:59]} 4.
Nf3 {[%clk 0:02:57.3]} 4... Bg7 {[%clk 0:02:58.2]} 5. Bg5 {[%clk 0:02:57.8]}
5... Ne4 {[%clk 0:02:56.6]} 6. cxd5 {[%clk 0:02:57.2]} 6... Nxg5 {[%clk
0:02:56.2]} 7. Nxg5 {[%clk 0:02:58.1]} 7... e6 {[%clk 0:02:56.9]} 8. Nf3 {[%clk
0:02:57.7]} 8... exd5 {[%clk 0:02:55.3]} 9. e3 {[%clk 0:02:57.9]} 9... O-O
{[%clk 0:02:54.4]} 10. b4 {[%clk 0:02:56.1]} 10... c6 {[%clk 0:02:47.2]} 11. Bd3
{[%clk 0:02:42.3]} 11... Nd7 {[%clk 0:02:25.2]} 12. O-O {[%clk 0:02:30.5]} 12...
Qe7 {[%clk 0:02:18.5]} 13. b5 {[%clk 0:02:17.2]} 13... Re8 {[%clk 0:02:09.9]}
14. bxc6 {[%clk 0:02:06.1]} 14... bxc6 {[%clk 0:02:09.8]} 15. Rc1 {[%clk
0:02:05.9]} 15... Rb8 {[%clk 0:02:03.9]} 16. Qa4 {[%clk 0:02:01.2]} 16... Rb6
{[%clk 0:01:47.6]} 17. Qxa7 {[%clk 0:01:53.5]} 17... Bb7 {[%clk 0:01:46.7]} 18.
Qa4 {[%clk 0:01:49.5]} 18... Ra8 {[%clk 0:01:46.3]} 19. Qc2 {[%clk 0:01:46.1]}
19... Qa3 {[%clk 0:01:43.7]} 20. Rb1 {[%clk 0:01:36.3]} 20... Ba6 {[%clk
0:01:37.8]} 21. Bxa6 {[%clk 0:01:27.5]} 21... Rbxa6 {[%clk 0:01:23.4]} 22. Rb7
{[%clk 0:01:25.9]} 22... Nb6 {[%clk 0:01:17.8]} 23. Rb1 {[%clk 0:01:22.6]} 23...
Nc4 {[%clk 0:01:17.1]} 24. Nd2 {[%clk 0:00:59.5]} 24... Nd6 {[%clk 0:01:12.8]}
25. R7b3 {[%clk 0:00:57.3]} 25... Qa5 {[%clk 0:01:11.6]} 26. a4 {[%clk
0:00:47.8]} 26... Bf6 {[%clk 0:01:01.3]} 27. h3 {[%clk 0:00:34.8]} 27... Kg7
{[%clk 0:01:01]} 28. Ra3 {[%clk 0:00:30.3]} 28... Be7 {[%clk 0:00:40.6]} 29. Ra2
{[%clk 0:00:28.8]} 29... h5 {[%clk 0:00:40.5]} 30. Ne2 {[%clk 0:00:25.1]} 30...
Qc7 {[%clk 0:00:36.6]} 31. Nf4 {[%clk 0:00:18.1]} 31... Bg5 {[%clk 0:00:32.2]}
32. Nd3 {[%clk 0:00:17.3]} 32... Bf6 {[%clk 0:00:31.6]} 33. Nc5 {[%clk
0:00:14.3]} 33... R6a7 {[%clk 0:00:32]} 34. Kh1 {[%clk 0:00:07.8]} 34... Nf5
{[%clk 0:00:32.1]} 35. Qd3 {[%clk 0:00:03.1]} 35... Bd8 {[%clk 0:00:31]} 36.
Ndb3 {[%clk 0:00:03.2]} 36... Qe7 {[%clk 0:00:30.6]} 37. Rba1 {[%clk 0:00:01.7]}
37... Bc7 {[%clk 0:00:30.9]} 38. a5 {[%clk 0:00:02.2]} 38... Qd6 {[%clk
0:00:31.1]} 39. g3 {[%clk 0:00:02.1]} 39... h4 {[%clk 0:00:27.1]} 40. a6 {[%clk
0:00:02.1]} 40... hxg3 {[%clk 0:00:27.2]} 41. f4 {[%clk 0:00:02.4]} 41... Rh8
{[%clk 0:00:25.9]} 42. Kg2 {[%clk 0:00:02.4]} 42... Nh4+ {[%clk 0:00:22.6]} 43.
Kxg3 {[%clk 0:00:01.8]} 43... Nf5+ {[%clk 0:00:21.6]} 44. Kh2 {[%clk 0:00:01.9]}
44... Qe7 {[%clk 0:00:20.5]} 45. Rg1 {[%clk 0:00:01.8]} 45... Raa8 {[%clk
0:00:19]} 46. Qxf5 {[%clk 0:00:02.1]} 46... Qxe3 {[%clk 0:00:17]} 47. Qg4 {[%clk
0:00:02.3]} 47... Bxf4+ {[%clk 0:00:15.5]} 48. Kh1 {[%clk 0:00:02.3]} 48...
Rxh3+ {[%clk 0:00:15.3]} 49. Kg2 {[%clk 0:00:02.6]} 49... Rh2+ {[%clk
0:00:14.8]} 50. Kf1 {[%clk 0:00:02.2]} 50... Rxa2 {[%clk 0:00:14.7]} 51. Rg2
{[%clk 0:00:01.5]} 51... Rxg2 {[%clk 0:00:13.4]} 52. Qxg2 {[%clk 0:00:02.4]}
52... Re8 {[%clk 0:00:12.8]} 53. Qf2 {[%clk 0:00:01.6]} 53... Qh3+ {[%clk
0:00:12.5]} 54. Qg2 {[%clk 0:00:01.7]} 54... Re1+ {[%clk 0:00:12.1]} 55. Kxe1
{[%clk 0:00:01.9]} 55... Qxg2 {[%clk 0:00:12.6]} 56. a7 {[%clk 0:00:02.8]} 56...
Qa2 {[%clk 0:00:12]} 0-1

[Event "*** Titled Tuesday Blitz"]
[Site "Chess.com"]
[Date "2020.12.01"]
[Round "9"]
[White "Sanyura"]
[Black "Pogosian_Manvel"]
[Result "1-0"]
[WhiteElo "2529"]
[BlackElo "2404"]
[TimeControl "180+1"]
[EndTime "11:44:44 PST"]
[Termination "Sanyura won by resignation"]

1. e4 {[%clk 0:02:58.6]} 1... c6 {[%clk 0:02:59.9]} 2. Nf3 {[%clk 0:02:57.6]}
2... d5 {[%clk 0:03:00.2]} 3. Nc3 {[%clk 0:02:58]} 3... Bg4 {[%clk 0:03:00]} 4.
h3 {[%clk 0:02:57.8]} 4... Bxf3 {[%clk 0:03:00.4]} 5. Qxf3 {[%clk 0:02:58.5]}
5... e6 {[%clk 0:03:01]} 6. d4 {[%clk 0:02:57.6]} 6... Nd7 {[%clk 0:03:01]} 7.
Bd3 {[%clk 0:02:56.8]} 7... Ngf6 {[%clk 0:02:59.4]} 8. e5 {[%clk 0:02:56.5]}
8... Ng8 {[%clk 0:02:59.3]} 9. O-O {[%clk 0:02:55.6]} 9... Ne7 {[%clk
0:02:51.9]} 10. Bg5 {[%clk 0:02:51.6]} 10... h6 {[%clk 0:02:46.1]} 11. Bh4
{[%clk 0:02:51.7]} 11... Qb6 {[%clk 0:02:38.9]} 12. Ne2 {[%clk 0:02:40]} 12...
c5 {[%clk 0:02:35.1]} 13. c3 {[%clk 0:02:38.5]} 13... Nc6 {[%clk 0:02:32.7]} 14.
Rfd1 {[%clk 0:02:34.4]} 14... Be7 {[%clk 0:02:28.3]} 15. Bxe7 {[%clk 0:02:31.4]}
15... Nxe7 {[%clk 0:02:26.1]} 16. Nf4 {[%clk 0:02:27.4]} 16... O-O-O {[%clk
0:02:17.6]} 17. Nh5 {[%clk 0:02:19.5]} 17... Rdf8 {[%clk 0:02:08.2]} 18. Nxg7
{[%clk 0:02:15.5]} 18... Rhg8 {[%clk 0:02:07.3]} 19. Nh5 {[%clk 0:02:15]} 19...
cxd4 {[%clk 0:02:07.1]} 20. cxd4 {[%clk 0:02:13.9]} 20... Qxd4 {[%clk
0:01:49.9]} 21. Rac1+ {[%clk 0:01:29]} 21... Kb8 {[%clk 0:01:42.3]} 22. Bh7
{[%clk 0:01:29.4]} 22... Qxe5 {[%clk 0:01:11.4]} 23. Bxg8 {[%clk 0:01:28.5]}
23... Nxg8 {[%clk 0:01:01.1]} 24. Nf4 {[%clk 0:01:25.8]} 24... Ngf6 {[%clk
0:00:55.9]} 25. Nd3 {[%clk 0:01:09.7]} 25... Qg5 {[%clk 0:00:51.7]} 26. Nc5
{[%clk 0:00:56.4]} 26... Nxc5 {[%clk 0:00:44.6]} 27. Rxc5 {[%clk 0:00:57.3]}
27... Ne4 {[%clk 0:00:44]} 28. Rc2 {[%clk 0:00:54.8]} 28... f5 {[%clk
0:00:40.2]} 29. Rdc1 {[%clk 0:00:50.2]} 29... a6 {[%clk 0:00:40.1]} 30. Rc7
{[%clk 0:00:44.2]} 30... Rg8 {[%clk 0:00:36.2]} 31. g3 {[%clk 0:00:38.4]} 31...
Qd2 {[%clk 0:00:28.1]} 32. R1c2 {[%clk 0:00:21.3]} 32... Qe1+ {[%clk 0:00:24.6]}
33. Kg2 {[%clk 0:00:21.6]} 33... Nd2 {[%clk 0:00:18]} 34. Qf4 {[%clk 0:00:14.8]}
34... Qe4+ {[%clk 0:00:15.2]} 35. Qxe4 {[%clk 0:00:15]} 35... Nxe4 {[%clk
0:00:15.4]} 36. Re7 {[%clk 0:00:15.6]} 36... f4 {[%clk 0:00:15]} 37. g4 {[%clk
0:00:15.6]} 37... Rg6 {[%clk 0:00:11.5]} 38. Rcc7 {[%clk 0:00:12.6]} 38... b5
{[%clk 0:00:10]} 39. Rb7+ {[%clk 0:00:12.6]} 39... Kc8 {[%clk 0:00:10.1]} 40.
Rec7+ {[%clk 0:00:13.2]} 40... Kd8 {[%clk 0:00:09.7]} 41. Rh7 {[%clk 0:00:13.2]}
41... Kc8 {[%clk 0:00:07.9]} 42. Rbc7+ {[%clk 0:00:13.6]} 42... Kb8 {[%clk
0:00:07.9]} 43. Rcf7 {[%clk 0:00:14.2]} 43... Nd6 {[%clk 0:00:05.2]} 44. Rf8+
{[%clk 0:00:14.2]} 44... Nc8 {[%clk 0:00:05.7]} 45. Rhh8 {[%clk 0:00:14.7]}
45... Kb7 {[%clk 0:00:06]} 46. Rxc8 {[%clk 0:00:14.4]} 46... e5 {[%clk
0:00:06.6]} 47. Rce8 {[%clk 0:00:14.6]} 47... e4 {[%clk 0:00:06.6]} 48. Rhf8
{[%clk 0:00:15.1]} 48... f3+ {[%clk 0:00:06.8]} 49. Kg3 {[%clk 0:00:15.7]} 49...
Rd6 {[%clk 0:00:07]} 50. Rf7+ {[%clk 0:00:16]} 50... Kb6 {[%clk 0:00:07.2]} 51.
Rc8 {[%clk 0:00:16.4]} 51... d4 {[%clk 0:00:06.6]} 52. Re7 {[%clk 0:00:15.6]}
52... d3 {[%clk 0:00:06.7]} 53. Rc1 {[%clk 0:00:16.2]} 53... d2 {[%clk
0:00:06.2]} 54. Rd1 {[%clk 0:00:16.7]} 54... Rd4 {[%clk 0:00:06.1]} 55. Kf4
{[%clk 0:00:17]} 55... Kc5 {[%clk 0:00:02]} 56. Rxe4 {[%clk 0:00:17]} 56... Rd5
{[%clk 0:00:02.1]} 57. Re5 {[%clk 0:00:17.2]} 57... Rxe5 {[%clk 0:00:02.5]} 58.
Kxe5 {[%clk 0:00:18.1]} 1-0

[Event "*** Titled Tuesday Blitz"]
[Site "Chess.com"]
[Date "2020.12.01"]
[Round "9"]
[White "vwnv7"]
[Black "cstevens1"]
[Result "0-1"]
[WhiteElo "2414"]
[BlackElo "2646"]
[TimeControl "180+1"]
[EndTime "11:44:45 PST"]
[Termination "cstevens1 won by resignation"]

1. c4 {[%clk 0:03:00.9]} 1... c5 {[%clk 0:03:00.3]} 2. Nc3 {[%clk 0:03:00.5]}
2... b6 {[%clk 0:03:00.7]} 3. e4 {[%clk 0:02:57.3]} 3... Bb7 {[%clk 0:03:00.7]}
4. Nf3 {[%clk 0:02:51.1]} 4... e6 {[%clk 0:03:01]} 5. Be2 {[%clk 0:02:51]} 5...
Nf6 {[%clk 0:02:59.9]} 6. e5 {[%clk 0:02:45]} 6... Ng4 {[%clk 0:02:58.9]} 7. d4
{[%clk 0:02:36.3]} 7... Nc6 {[%clk 0:02:53.3]} 8. Bg5 {[%clk 0:02:07.6]} 8...
Qb8 {[%clk 0:02:50.6]} 9. Bf4 {[%clk 0:01:53.7]} 9... Nxd4 {[%clk 0:02:34]} 10.
Nxd4 {[%clk 0:01:48.7]} 10... cxd4 {[%clk 0:02:34.3]} 11. Nb5 {[%clk 0:01:26.3]}
11... Bxg2 {[%clk 0:02:09]} 12. Rg1 {[%clk 0:01:21.9]} 12... Bb4+ {[%clk
0:01:59.7]} 13. Bd2 {[%clk 0:01:21.7]} 13... Bxd2+ {[%clk 0:01:30.7]} 14. Qxd2
{[%clk 0:01:15.8]} 14... Nxe5 {[%clk 0:01:27.1]} 15. Rxg2 {[%clk 0:01:12.6]}
15... d3 {[%clk 0:01:24.5]} 16. Bd1 {[%clk 0:01:07.3]} 16... a6 {[%clk
0:01:03.6]} 17. Nc3 {[%clk 0:00:59.4]} 17... O-O {[%clk 0:00:51]} 18. f4 {[%clk
0:00:52.4]} 18... Nxc4 {[%clk 0:00:47.2]} 19. Qxd3 {[%clk 0:00:49.3]} 19... Qxf4
{[%clk 0:00:41.4]} 20. Bf3 {[%clk 0:00:34.8]} 20... Ne5 {[%clk 0:00:37.4]} 21.
Qe4 {[%clk 0:00:25]} 21... Nxf3+ {[%clk 0:00:36.6]} 22. Kf2 {[%clk 0:00:24.4]}
22... Qxe4 {[%clk 0:00:30.7]} 23. Nxe4 {[%clk 0:00:24.6]} 23... Ne5 {[%clk
0:00:28.8]} 24. Rag1 {[%clk 0:00:23.9]} 24... g6 {[%clk 0:00:22.3]} 25. h4
{[%clk 0:00:22.8]} 25... d5 {[%clk 0:00:20.8]} 26. Nf6+ {[%clk 0:00:21.8]} 26...
Kg7 {[%clk 0:00:20.4]} 27. Nh5+ {[%clk 0:00:21.8]} 27... Kh8 {[%clk 0:00:20.8]}
28. Nf6 {[%clk 0:00:21.4]} 28... Rac8 {[%clk 0:00:20.1]} 29. Ke3 {[%clk
0:00:20.6]} 29... Rc4 {[%clk 0:00:15.1]} 30. h5 {[%clk 0:00:19.9]} 30... Kg7
{[%clk 0:00:15.5]} 31. hxg6 {[%clk 0:00:17.4]} 31... Kxf6 {[%clk 0:00:13.8]} 32.
Rf1+ {[%clk 0:00:15.2]} 32... Ke7 {[%clk 0:00:12.6]} 33. gxh7 {[%clk 0:00:14.2]}
33... Rh8 {[%clk 0:00:12.7]} 34. Rg7 {[%clk 0:00:14.2]} 34... Rh4 {[%clk
0:00:11.3]} 35. Rg5 {[%clk 0:00:11.5]} 35... Ng6 {[%clk 0:00:09.6]} 36. Rg3
{[%clk 0:00:09.2]} 36... R8xh7 {[%clk 0:00:09.6]} 37. Rgf3 {[%clk 0:00:09.8]}
37... Rh3 {[%clk 0:00:09.8]} 38. Kd4 {[%clk 0:00:09.6]} 38... Rxf3 {[%clk
0:00:09.8]} 39. Rxf3 {[%clk 0:00:09.8]} 39... Rh4+ {[%clk 0:00:10.7]} 40. Kc3
{[%clk 0:00:09.9]} 40... Re4 {[%clk 0:00:11.1]} 41. a4 {[%clk 0:00:08.9]} 41...
Ne5 {[%clk 0:00:11.3]} 42. Rh3 {[%clk 0:00:06.7]} 42... Rxa4 {[%clk 0:00:11.7]}
43. Kb3 {[%clk 0:00:06.6]} 43... Rg4 {[%clk 0:00:11.3]} 44. Rc3 {[%clk 0:00:07]}
44... Kd6 {[%clk 0:00:11]} 45. Rc8 {[%clk 0:00:07]} 45... Nc6 {[%clk 0:00:11.1]}
46. Ra8 {[%clk 0:00:06.1]} 46... a5 {[%clk 0:00:10.9]} 47. Ra6 {[%clk
0:00:06.3]} 47... Kc5 {[%clk 0:00:11.1]} 48. Ra8 {[%clk 0:00:06.4]} 48... Rf4
{[%clk 0:00:11.5]} 49. Ka3 {[%clk 0:00:06.5]} 49... Rf3+ {[%clk 0:00:11.8]} 50.
b3 {[%clk 0:00:06.8]} 50... Nd4 {[%clk 0:00:12.1]} 51. Rc8+ {[%clk 0:00:07]}
51... Kb5 {[%clk 0:00:12.6]} 52. Ka2 {[%clk 0:00:05.9]} 52... Nxb3 {[%clk
0:00:12.9]} 53. Rc7 {[%clk 0:00:05.3]} 53... Nc5 {[%clk 0:00:13.3]} 54. Rc8
{[%clk 0:00:04.7]} 54... Rf2+ {[%clk 0:00:13.8]} 55. Kb1 {[%clk 0:00:02.4]}
55... d4 {[%clk 0:00:14.3]} 56. Kc1 {[%clk 0:00:02.5]} 56... d3 {[%clk
0:00:14.7]} 57. Kd1 {[%clk 0:00:02.9]} 57... Rc2 {[%clk 0:00:15.2]} 58. Ke1
{[%clk 0:00:02.8]} 58... Ne4 {[%clk 0:00:15.6]} 59. Kd1 {[%clk 0:00:02.8]} 59...
Rxc8 {[%clk 0:00:15.3]} 0-1

[Event "*** Titled Tuesday Blitz"]
[Site "Chess.com"]
[Date "2020.12.01"]
[Round "9"]
[White "Cambek64"]
[Black "Qvalda"]
[Result "0-1"]
[WhiteElo "2288"]
[BlackElo "2443"]
[TimeControl "180+1"]
[EndTime "11:44:46 PST"]
[Termination "Qvalda won on time"]

1. e4 {[%clk 0:02:58.2]} 1... c6 {[%clk 0:02:59.9]} 2. d4 {[%clk 0:02:57.4]}
2... d5 {[%clk 0:03:00.8]} 3. Nc3 {[%clk 0:02:57.4]} 3... dxe4 {[%clk
0:03:00.4]} 4. Nxe4 {[%clk 0:02:58]} 4... Bf5 {[%clk 0:03:01]} 5. Ng3 {[%clk
0:02:56]} 5... Bg6 {[%clk 0:03:01.3]} 6. Nf3 {[%clk 0:02:56.5]} 6... Nd7 {[%clk
0:03:00.6]} 7. h4 {[%clk 0:02:55.6]} 7... h6 {[%clk 0:03:00.8]} 8. h5 {[%clk
0:02:56]} 8... Bh7 {[%clk 0:03:00.9]} 9. Bd3 {[%clk 0:02:56.6]} 9... Bxd3 {[%clk
0:03:01.3]} 10. Qxd3 {[%clk 0:02:57.2]} 10... e6 {[%clk 0:03:01.8]} 11. Bf4
{[%clk 0:02:57.6]} 11... Qa5+ {[%clk 0:03:01.8]} 12. Bd2 {[%clk 0:02:57.7]}
12... Qc7 {[%clk 0:03:02]} 13. O-O-O {[%clk 0:02:56.7]} 13... O-O-O {[%clk
0:03:00.7]} 14. Qe2 {[%clk 0:02:53.5]} 14... Ngf6 {[%clk 0:02:59.1]} 15. c4
{[%clk 0:02:50.4]} 15... c5 {[%clk 0:02:35.4]} 16. Kb1 {[%clk 0:02:44.8]} 16...
cxd4 {[%clk 0:02:24]} 17. Nxd4 {[%clk 0:02:43.5]} 17... a6 {[%clk 0:02:22.7]}
18. Ne4 {[%clk 0:02:39.8]} 18... Nxe4 {[%clk 0:02:14.7]} 19. Qxe4 {[%clk
0:02:38.7]} 19... Nf6 {[%clk 0:02:04.9]} 20. Qh4 {[%clk 0:02:30.5]} 20... Bc5
{[%clk 0:01:40.4]} 21. Bc3 {[%clk 0:02:10]} 21... Rd7 {[%clk 0:01:13.6]} 22. Nb3
{[%clk 0:02:05.1]} 22... Be7 {[%clk 0:00:57.5]} 23. Bxf6 {[%clk 0:01:48.9]}
23... Bxf6 {[%clk 0:00:52.3]} 24. Qe4 {[%clk 0:01:37.3]} 24... Rhd8 {[%clk
0:00:51.4]} 25. Rxd7 {[%clk 0:01:30.9]} 25... Qxd7 {[%clk 0:00:52.3]} 26. Nc5
{[%clk 0:00:55.4]} 26... Qc7 {[%clk 0:00:39.6]} 27. Nb3 {[%clk 0:00:54.1]} 27...
Qe5 {[%clk 0:00:32.5]} 28. Qxe5 {[%clk 0:00:52.2]} 28... Bxe5 {[%clk 0:00:33.4]}
29. Kc2 {[%clk 0:00:51.2]} 29... Kc7 {[%clk 0:00:23.9]} 30. Re1 {[%clk
0:00:47.8]} 30... Bf6 {[%clk 0:00:23.3]} 31. g3 {[%clk 0:00:44.2]} 31... b5
{[%clk 0:00:14]} 32. cxb5 {[%clk 0:00:40.7]} 32... axb5 {[%clk 0:00:14.9]} 33.
a3 {[%clk 0:00:39.1]} 33... Kb6 {[%clk 0:00:14.4]} 34. Re4 {[%clk 0:00:36]}
34... Rd5 {[%clk 0:00:11.5]} 35. g4 {[%clk 0:00:34.5]} 35... Bg5 {[%clk
0:00:10.5]} 36. f3 {[%clk 0:00:27]} 36... Bf6 {[%clk 0:00:09.3]} 37. Rb4 {[%clk
0:00:17.4]} 37... Kc6 {[%clk 0:00:07.2]} 38. Nd2 {[%clk 0:00:13.7]} 38... Rc5+
{[%clk 0:00:06]} 39. Kd1 {[%clk 0:00:12]} 39... Re5 {[%clk 0:00:05.2]} 40. Ne4
{[%clk 0:00:11.2]} 40... Be7 {[%clk 0:00:05.4]} 41. Rb3 {[%clk 0:00:10.2]} 41...
f5 {[%clk 0:00:05.6]} 42. Rc3+ {[%clk 0:00:10.6]} 42... Kb6 {[%clk 0:00:05.6]}
43. Nf2 {[%clk 0:00:08.3]} 43... Rd5+ {[%clk 0:00:05.6]} 44. Rd3 {[%clk
0:00:07.7]} 44... Rc5 {[%clk 0:00:04.8]} 45. b4 {[%clk 0:00:06.4]} 45... Rc6
{[%clk 0:00:04.7]} 46. Ke2 {[%clk 0:00:04.7]} 46... Bf6 {[%clk 0:00:04.8]} 47.
Nd1 {[%clk 0:00:04.1]} 47... Rc2+ {[%clk 0:00:04.7]} 48. Rd2 {[%clk 0:00:04.2]}
48... Rxd2+ {[%clk 0:00:04.4]} 49. Kxd2 {[%clk 0:00:03.9]} 49... Kc6 {[%clk
0:00:04.4]} 50. Kd3 {[%clk 0:00:02.2]} 50... Kd5 {[%clk 0:00:04.1]} 51. Ne3+
{[%clk 0:00:02.2]} 51... Ke5 {[%clk 0:00:03]} 0-1